bitfinex/quotes_BTCUSD_20230110
["timestamp","ask_amount","ask_price","bid_price","bid_amount"]
[1673336183231,0.01843543,17206.0,17205.0,3.16570732]
[1673336183731,0.01843543,17206.0,17205.0,3.34028688]
[1673336183986,0.01843543,17206.0,17205.0,3.3014243]
[1673336184236,0.01843543,17206.0,17205.0,2.86578072]
[1673336184490,0.01843543,17206.0,17205.0,3.3014243]
[1673336184753,0.01843543,17206.0,17205.0,2.86578072]
[1673336187236,0.01843543,17206.0,17205.0,3.04028688]
[1673336188231,0.01843543,17206.0,17205.0,3.34028688]
[1673336190980,0.01836357,17206.0,17205.0,3.34028688]
[1673336193695,0.01836357,17206.0,17205.0,2.99177201]
[1673336201445,0.01836357,17206.0,17205.0,2.69177201]
[1673336201691,0.01836357,17206.0,17205.0,2.99177201]
[1673336202223,0.01836357,17206.0,17205.0,3.04013518]
[1673336202758,0.01836357,17206.0,17205.0,2.69177201]
[1673336203530,0.01836357,17206.0,17205.0,3.04016773]
[1673336204293,0.01836357,17206.0,17205.0,2.63616557]
[1673336204807,0.01836357,17206.0,17205.0,2.69177201]
[1673336207147,0.01836357,17206.0,17205.0,2.99177201]
[1673336207429,0.01836357,17206.0,17205.0,2.55612843]
[1673336214577,0.01830303,17206.0,17205.0,2.55612843]
[1673336218183,0.01830303,17206.0,17205.0,3.07883061]
[1673336218443,0.01830303,17206.0,17205.0,2.67482845]
[1673336218706,0.01830303,17206.0,17205.0,2.55612843]
[1673336219206,0.01630303,17206.0,17205.0,2.51812843]
[1673336220000,0.01830303,17206.0,17205.0,2.65812843]
[1673336220506,0.00531574,17206.0,17205.0,2.65812843]
[1673336220779,0.00531574,17206.0,17205.0,3.18083061]
[1673336221626,0.02166704,17206.0,17205.0,3.18083061]
[1673336221779,0.02166704,17206.0,17205.0,2.65812843]
[1673336224456,0.01966704,17206.0,17205.0,2.51812843]
[1673336224761,0.02166704,17206.0,17205.0,2.61312843]
[1673336226384,0.02166704,17206.0,17205.0,1.90912627]
[1673336231733,0.02166704,17206.0,17205.0,2.34495653]
[1673336232757,0.02166704,17206.0,17205.0,2.14495653]
[1673336234872,0.02166704,17206.0,17205.0,1.78358253]
[1673336235122,0.02166704,17206.0,17205.0,2.13223402]
[1673336235360,0.02166704,17206.0,17205.0,2.49360802]
[1673336237353,0.02166704,17206.0,17205.0,2.14495653]
[1673336237593,0.02166704,17206.0,17205.0,2.49356643]
[1673336237831,0.02166704,17206.0,17205.0,2.14495653]
[1673336238825,0.02166704,17206.0,17205.0,2.4935617]
[1673336240461,0.02166704,17206.0,17205.0,2.14495653]
[1673336240705,0.02166704,17206.0,17205.0,2.49354693]
[1673336241210,0.02166704,17206.0,17205.0,2.14495653]
[1673336242200,0.02166704,17206.0,17205.0,2.31261851]
[1673336242945,0.02166704,17206.0,17205.0,1.96402795]
[1673336243189,0.02166704,17206.0,17205.0,2.31261183]
[1673336243692,0.02166704,17206.0,17205.0,1.96402795]
[1673336245178,0.02158362,17206.0,17205.0,1.96402795]
[1673336247894,0.02158362,17206.0,17205.0,2.31260337]
[1673336253063,0.02142162,17206.0,17205.0,2.31260337]
[1673336254612,0.02142162,17206.0,17205.0,1.95122937]
[1673336256815,0.02142162,17206.0,17205.0,2.31260337]
[1673336265411,0.02142162,17206.0,17205.0,1.77687705]
[1673336265627,0.02142162,17206.0,17205.0,1.95122937]
[1673336266124,0.02226366,17206.0,17205.0,1.95084888]
[1673336266372,0.02142162,17206.0,17205.0,1.77652115]
[1673336268272,0.0213433,17206.0,17205.0,1.77652115]
[1673336268532,0.0196933,17206.0,17205.0,2.13789515]
[1673336269064,0.0196933,17206.0,17205.0,1.77652115]
[1673336271055,0.0196933,17206.0,17205.0,1.60226947]
[1673336271564,0.02411877,17206.0,17205.0,1.60226947]
[1673336274344,0.02411877,17206.0,17205.0,0.98901231]
[1673336274865,0.02411877,17206.0,17205.0,0.72750978]
[1673336275123,0.02411877,17206.0,17205.0,0.98901231]
[1673336275389,0.02411877,17206.0,17205.0,0.72750978]
[1673336276163,1.04141702,17206.0,17205.0,0.26932374]
[1673336276401,1.90796088,17206.0,17205.0,0.095]
[1673336276910,1.64526488,17206.0,17205.0,0.095]
[1673336277160,1.90796088,17206.0,17205.0,0.095]
[1673336277914,1.64650258,17206.0,17205.0,0.095]
[1673336278424,1.38296454,17206.0,17205.0,0.095]
[1673336279316,1.64442284,17206.0,17205.0,0.095]
[1673336279496,1.38380658,17206.0,17205.0,0.095]
[1673336280065,1.64650258,17206.0,17205.0,0.095]
[1673336280305,1.38380658,17206.0,17205.0,0.095]
[1673336282537,0.81679175,17206.0,17205.0,0.095]
[1673336286152,0.81763379,17206.0,17205.0,0.095]
[1673336286395,0.81679175,17206.0,17205.0,0.095]
[1673336287085,0.81763379,17206.0,17205.0,0.095]
[1673336287365,0.81679175,17206.0,17205.0,0.095]
[1673336288116,0.81763379,17206.0,17205.0,0.095]
[1673336288362,0.81679175,17206.0,17205.0,0.095]
[1673336289343,0.81763379,17206.0,17205.0,0.095]
[1673336289596,0.81679175,17206.0,17205.0,0.095]
[1673336294914,0.81763379,17206.0,17205.0,0.095]
[1673336295183,0.81679175,17206.0,17205.0,0.095]
[1673336295672,0.81763379,17206.0,17205.0,0.095]
[1673336296177,0.81679175,17206.0,17205.0,0.095]
[1673336296679,0.81763379,17206.0,17205.0,0.095]
[1673336297675,1.2093282,17206.0,17205.0,0.095]
[1673336298441,0.81679175,17206.0,17205.0,0.095]
[1673336303447,0.81763379,17206.0,17205.0,0.095]
[1673336303712,0.81679175,17206.0,17205.0,0.095]
[1673336306603,0.99202335,17206.0,17205.0,0.095]
[1673336307096,0.99118131,17206.0,17205.0,0.095]
[1673336308719,0.82318131,17206.0,17205.0,0.095]
[1673336312377,0.82402335,17206.0,17205.0,0.095]
[1673336312634,0.82318131,17206.0,17205.0,0.095]
[1673336313143,1.08463961,17206.0,17205.0,0.095]
[1673336313390,1.08548165,17206.0,17205.0,0.095]
[1673336313910,1.08463961,17206.0,17205.0,0.095]
[1673336318753,0.82318131,17206.0,17205.0,0.095]
[1673336319547,1.08463961,17206.0,17205.0,0.095]
[1673336320819,0.82318131,17206.0,17205.0,0.26932374]
[1673336321069,1.48860061,17206.0,17205.0,0.095]
[1673336321328,1.08548165,17206.0,17205.0,0.095]
[1673336321857,1.08463961,17206.0,17205.0,0.095]
[1673336322349,1.08548165,17206.0,17205.0,0.095]
[1673336326324,1.08463961,17206.0,17205.0,0.095]
[1673336326838,1.43284737,17206.0,17205.0,0.095]
[1673336327329,1.08463961,17206.0,17205.0,0.095]
[1673336328561,1.4886008,17206.0,17205.0,0.095]
[1673336328807,1.662419,17206.0,17205.0,0.095]
[1673336329833,1.66326104,17206.0,17205.0,0.095]
[1673336332680,1.25845781,17206.0,17205.0,0.095]
[1673336333417,1.25929985,17206.0,17205.0,0.095]
[1673336334171,1.66330201,17206.0,17205.0,0.095]
[1673336335258,1.25929985,17206.0,17205.0,0.095]
[1673336335785,1.66330201,17206.0,17205.0,0.095]
[1673336336005,1.25845781,17206.0,17205.0,0.095]
[1673336337944,1.25929985,17206.0,17205.0,0.095]
[1673336338195,1.25845781,17206.0,17205.0,0.095]
[1673336338443,1.66245997,17206.0,17205.0,0.095]
[1673336338947,1.25929985,17206.0,17205.0,0.095]
[1673336339445,1.25845781,17206.0,17205.0,0.095]
[1673336339708,1.08448471,17206.0,17205.0,0.095]
[1673336339957,1.25845781,17206.0,17205.0,0.095]
[1673336340447,1.08448344,17206.0,17205.0,0.095]
[1673336340699,1.66245997,17206.0,17205.0,0.095]
[1673336340956,1.66330201,17206.0,17205.0,0.095]
[1673336341702,1.25845781,17206.0,17205.0,0.095]
[1673336341963,1.25929985,17206.0,17205.0,0.095]
[1673336342219,1.25845781,17206.0,17205.0,0.095]
[1673336342958,1.08448168,17206.0,17205.0,0.095]
[1673336344218,1.08448168,17206.0,17205.0,0.09538049]
[1673336344469,1.08448168,17206.0,17205.0,0.095]
[1673336347680,1.08532372,17206.0,17205.0,0.095]
[1673336347927,1.08448168,17206.0,17205.0,0.095]
[1673336349959,1.08532372,17206.0,17205.0,0.095]
[1673336350205,1.08448168,17206.0,17205.0,0.095]
[1673336350906,0.82302338,17206.0,17205.0,0.095]
[1673336351420,0.02411877,17206.0,17205.0,0.82898958]
[1673336352731,0.0196933,17206.0,17205.0,0.82898958]
[1673336353756,0.02053534,17206.0,17205.0,0.82898958]
[1673336354011,0.19392493,17206.0,17205.0,0.65466584]
[1673336354841,0.19476697,17206.0,17205.0,0.65466584]
[1673336355023,0.19392493,17206.0,17205.0,0.65466584]
[1673336356536,0.0196933,17206.0,17205.0,0.65466584]
[1673336358379,0.0196933,17206.0,17205.0,0.82898958]
[1673336361870,0.0196933,17206.0,17205.0,1.69253053]
[1673336362117,0.0196933,17206.0,17205.0,1.69253169]
[1673336362635,0.0196933,17206.0,17205.0,1.09049211]
[1673336363140,0.0196933,17206.0,17205.0,1.6924396]
[1673336364684,0.0196933,17206.0,17205.0,1.69148777]
[1673336364937,0.0196933,17206.0,17205.0,1.09049211]
[1673336365185,0.0196933,17206.0,17205.0,0.82898958]
[1673336365430,0.0196933,17206.0,17205.0,1.09049211]
[1673336365934,0.0196933,17206.0,17205.0,0.82898958]
[1673336369645,0.0196933,17206.0,17205.0,1.45186611]
[1673336370646,0.0196933,17206.0,17205.0,0.82898958]
[1673336371172,0.0196933,17206.0,17205.0,1.09049211]
[1673336371424,0.0196933,17206.0,17205.0,0.82898958]
[1673336371676,0.0196933,17206.0,17205.0,1.69150565]
[1673336371954,0.0196933,17206.0,17205.0,1.09049211]
[1673336372438,0.0196933,17206.0,17205.0,1.69150065]
[1673336372703,0.0196933,17206.0,17205.0,2.05287465]
[1673336372967,0.0196933,17206.0,17205.0,1.09049211]
[1673336373513,0.0196933,17206.0,17205.0,1.69149031]
[1673336373798,0.0196933,17206.0,17205.0,1.09049211]
[1673336374294,0.0196933,17206.0,17205.0,0.82898958]
[1673336375566,0.0196933,17206.0,17205.0,1.09049211]
[1673336376071,0.0196933,17206.0,17205.0,1.69145718]
[1673336376573,0.0196933,17206.0,17205.0,1.09049211]
[1673336378363,0.0196933,17206.0,17205.0,0.82898958]
[1673336379190,0.0196933,17206.0,17205.0,1.19036358]
[1673336380693,0.0196933,17206.0,17205.0,1.45186611]
[1673336380696,0.003342,17206.0,17205.0,2.05320221]
[1673336380942,0.003342,17206.0,17205.0,1.45186611]
[1673336381700,0.003342,17206.0,17205.0,2.05320239]
[1673336382202,0.003342,17206.0,17205.0,1.45186611]
[1673336382465,0.003342,17206.0,17205.0,1.69190202]
[1673336382991,0.003342,17206.0,17205.0,2.05327602]
[1673336387324,0.003342,17206.0,17205.0,1.45186611]
[1673336388559,0.003342,17206.0,17205.0,1.69677902]
[1673336388815,0.003342,17206.0,17205.0,0.82898958]
[1673336389834,0.003342,17206.0,17205.0,1.19036358]
[1673336390079,0.003342,17206.0,17205.0,2.05834026]
[1673336390582,0.003342,17206.0,17205.0,2.23259194]
[1673336391371,0.003342,17206.0,17205.0,2.4068819]
[1673336391621,0.003342,17206.0,17205.0,2.05830648]
[1673336392568,0.003342,17206.0,17205.0,2.23259194]
[1673336392811,0.003342,17206.0,17205.0,2.05830979]
[1673336393556,0.003342,17206.0,17205.0,2.40688521]
[1673336393811,0.003342,17206.0,17205.0,2.05830971]
[1673336394588,0.003342,17206.0,17205.0,2.23259194]
[1673336394830,0.003342,17206.0,17205.0,2.0583279]
[1673336395574,0.003342,17206.0,17205.0,1.6969539]
[1673336395821,0.003342,17206.0,17205.0,2.0583279]
[1673336396081,0.003342,17206.0,17205.0,2.23259194]
[1673336396564,0.003342,17206.0,17205.0,2.25584394]
[1673336397855,0.003342,17206.0,17205.0,1.89446994]
[1673336399125,0.003342,17206.0,17205.0,2.25586817]
[1673336399421,0.003342,17206.0,17205.0,2.69169796]
[1673336400135,0.003342,17206.0,17205.0,2.43017167]
[1673336401401,0.003342,17206.0,17205.0,2.59797167]
[1673336401651,0.003342,17206.0,17205.0,2.95315038]
[1673336401905,0.003342,17206.0,17205.0,2.51425312]
[1673336402405,0.003342,17206.0,17205.0,2.95003457]
[1673336402624,0.003342,17206.0,17205.0,2.65003457]
[1673336403427,0.003342,17206.0,17205.0,2.99866267]
[1673336404182,0.003342,17206.0,17205.0,2.99878569]
[1673336406279,0.003342,17206.0,17205.0,2.99878565]
[1673336406531,0.003342,17206.0,17205.0,2.59490854]
[1673336409131,0.003342,17206.0,17205.0,2.99878555]
[1673336410146,0.003342,17206.0,17205.0,2.59490854]
[1673336410628,0.003342,17206.0,17205.0,2.42056947]
[1673336413951,0.003342,17206.0,17205.0,2.59490854]
[1673336414182,0.003342,17206.0,17205.0,2.85634892]
[1673336414433,0.003342,17206.0,17205.0,2.42056747]
[1673336417423,0.003342,17206.0,17205.0,2.59490854]
[1673336418170,0.003342,17206.0,17205.0,2.85634815]
[1673336418426,0.003342,17206.0,17205.0,2.85634933]
[1673336418667,0.003342,17206.0,17205.0,2.25276788]
[1673336418926,0.003342,17206.0,17205.0,2.42710854]
[1673336424774,0.00325547,17206.0,17205.0,2.42710854]
[1673336426002,0.00325547,17206.0,17205.0,2.83098541]
[1673336426744,0.00325547,17206.0,17205.0,2.42710854]
[1673336438582,0.00325547,17206.0,17205.0,2.07848044]
[1673336440657,0.00325547,17206.0,17205.0,2.42717591]
[1673336441366,0.00325547,17206.0,17205.0,2.07848044]
[1673336445775,0.00325547,17206.0,17205.0,2.42720633]
[1673336446289,0.00325547,17206.0,17205.0,2.07848044]
[1673336446810,0.00325547,17206.0,17205.0,2.42720606]
[1673336447028,0.00325547,17206.0,17205.0,2.07848044]
[1673336447283,0.00325547,17206.0,17205.0,2.42720603]
[1673336447497,0.00325547,17206.0,17205.0,2.09280144]
[1673336451389,0.00325547,17206.0,17205.0,2.44152387]
[1673336451607,0.00325547,17206.0,17205.0,2.44152464]
[1673336452101,0.00325547,17206.0,17205.0,2.09280144]
[1673336452345,0.00325547,17206.0,17205.0,2.44152339]
[1673336452600,0.00325547,17206.0,17205.0,2.09280144]
[1673336456817,0.00325547,17206.0,17205.0,2.49667819]
[1673336457115,0.00314289,17206.0,17205.0,2.06089674]
[1673336457339,0.00314289,17206.0,17205.0,2.36089674]
[1673336458254,0.00314289,17206.0,17205.0,2.06089674]
[1673336458769,0.00314289,17206.0,17205.0,2.36089674]
[1673336459270,0.00314289,17206.0,17205.0,1.65701999]
[1673336459778,0.00314289,17206.0,17205.0,2.06089768]
[1673336460282,0.00314289,17206.0,17205.0,1.65701999]
[1673336460535,0.00314289,17206.0,17205.0,2.09290017]
[1673336461549,0.00314289,17206.0,17205.0,2.49673637]
[1673336461798,0.00314289,17206.0,17205.0,2.36085619]
[1673336462785,0.00314289,17206.0,17205.0,2.06085619]
[1673336463036,0.00314289,17206.0,17205.0,1.65701999]
[1673336463294,0.00314289,17206.0,17205.0,1.95701999]
[1673336463546,0.00314289,17206.0,17205.0,2.36085619]
[1673336463802,0.00314289,17206.0,17205.0,2.0928676]
[1673336464313,0.00314289,17206.0,17205.0,1.65701999]
[1673336465025,0.00314289,17206.0,17205.0,1.95701999]
[1673336465287,0.00314289,17206.0,17205.0,2.09285035]
[1673336466705,0.00314289,17206.0,17205.0,1.65701999]
[1673336466916,0.00314289,17206.0,17205.0,2.06089761]
[1673336467735,0.00314289,17206.0,17205.0,2.06089771]
[1673336468246,0.00314289,17206.0,17205.0,2.36089771]
[1673336469268,0.00314289,17206.0,17205.0,2.36081456]
[1673336469814,0.00314289,17206.0,17205.0,2.06081456]
[1673336470014,0.00314289,17206.0,17205.0,1.65701999]
[1673336470720,0.00314289,17206.0,17205.0,2.06093902]
[1673336470934,0.00314289,17206.0,17205.0,2.06098058]
[1673336472614,0.00314289,17206.0,17205.0,2.36098058]
[1673336473774,0.00314289,17206.0,17205.0,2.36091346]
[1673336480493,0.00314289,17206.0,17205.0,2.36082949]
[1673336481502,0.00314289,17206.0,17205.0,2.36082945]
[1673336482265,0.00314289,17206.0,17205.0,2.06082978]
[1673336482599,0.00314289,17206.0,17205.0,2.09264508]
[1673336482794,0.00314289,17206.0,17205.0,2.49652199]
[1673336483054,0.00314289,17206.0,17205.0,2.79652199]
[1673336483307,0.00314289,17206.0,17205.0,2.36082978]
[1673336483565,0.00314289,17206.0,17205.0,1.95695287]
[1673336483818,0.00314289,17206.0,17205.0,2.06082965]
[1673336484074,0.00314289,17206.0,17205.0,2.36082965]
[1673336492721,0.00314289,17206.0,17205.0,2.88353183]
[1673336492985,0.00314289,17206.0,17205.0,2.36082965]
[1673336493241,0.00314289,17206.0,17205.0,2.88353183]
[1673336493737,0.00314289,17206.0,17205.0,2.36082965]
[1673336493995,0.00600373,17208.0,17206.0,0.00198221]
[1673336494252,0.00600373,17208.0,17207.0,1.57257183]
[1673336494508,0.00600373,17208.0,17207.0,0.96609768]
[1673336494755,0.00600373,17208.0,17207.0,1.57257183]
[1673336495947,0.00600373,17208.0,17207.0,1.71157183]
[1673336496195,0.00600373,17208.0,17207.0,1.95911135]
[1673336496460,0.00600373,17208.0,17207.0,2.4476172]
[1673336497211,0.00600373,17208.0,17207.0,2.3076172]
[1673336497455,0.00600373,17208.0,17207.0,2.4486172]
[1673336499746,0.00600373,17208.0,17207.0,2.70994026]
[1673336500003,0.00600373,17208.0,17207.0,2.27421658]
[1673336504956,0.00600373,17208.0,17207.0,2.4486172]
[1673336505206,0.00600373,17208.0,17207.0,2.27420161]
[1673336509911,0.00600373,17208.0,17207.0,2.4486172]
[1673336514363,0.00600373,17208.0,17207.0,2.70991733]
[1673336514618,0.00591525,17208.0,17207.0,2.27419365]
[1673336518815,0.00591525,17208.0,17207.0,2.10519365]
[1673336520535,0.00591525,17208.0,17207.0,2.2796172]
[1673336521823,0.00591525,17208.0,17207.0,2.2772582]
[1673336522317,0.00591525,17208.0,17207.0,2.10286646]
[1673336523367,0.00591525,17208.0,17207.0,2.2772582]
[1673336523882,0.00591525,17208.0,17207.0,2.53861224]
[1673336524133,0.00591525,17208.0,17207.0,2.10288856]
[1673336525484,0.00591525,17208.0,17207.0,2.2772582]
[1673336525735,0.02118426,17208.0,17207.0,2.2772582]
[1673336528968,0.02118426,17208.0,17207.0,1.92875235]
[1673336529215,0.02118426,17208.0,17207.0,2.63275451]
[1673336529470,0.02118426,17208.0,17207.0,2.22875235]
[1673336529715,0.02118426,17208.0,17207.0,2.63275451]
[1673336529965,0.02118426,17208.0,17207.0,2.22875235]
[1673336530217,0.02118426,17208.0,17207.0,2.63275451]
[1673336531522,0.02118426,17208.0,17207.0,2.19703083]
[1673336532307,0.02118426,17208.0,17207.0,1.92875044]
[1673336532806,0.02118426,17208.0,17207.0,2.22875044]
[1673336533057,0.02118426,17208.0,17207.0,2.19703083]
[1673336533303,0.02118426,17208.0,17207.0,2.22878865]
[1673336533553,0.02118426,17208.0,17207.0,1.79302867]
[1673336534291,0.02118426,17208.0,17207.0,2.19703083]
[1673336535032,0.02118426,17208.0,17207.0,1.79302867]
[1673336535291,0.02118426,17208.0,17207.0,2.19703083]
[1673336536820,0.02118426,17208.0,17207.0,1.79302867]
[1673336537580,0.02118426,17208.0,17207.0,2.22873462]
[1673336538498,0.02118426,17208.0,17207.0,1.92873462]
[1673336538721,0.02118426,17208.0,17207.0,2.22873462]
[1673336543861,0.02111576,17208.0,17207.0,2.22873462]
[1673336544958,0.02111576,17208.0,17207.0,2.63273678]
[1673336545227,0.02111576,17208.0,17207.0,2.22873462]
[1673336545757,0.02111576,17208.0,17207.0,2.19703083]
[1673336550372,0.02111576,17208.0,17207.0,1.79302867]
[1673336550864,0.02111576,17208.0,17207.0,2.19703083]
[1673336557680,0.02111576,17208.0,17207.0,1.79302867]
[1673336557930,0.02111576,17208.0,17207.0,2.19703083]
[1673336565420,0.02111576,17208.0,17207.0,2.71989925]
[1673336566120,0.02101037,17208.0,17207.0,2.71989925]
[1673336566381,0.05371643,17209.0,17207.0,2.71989925]
[1673336566382,0.05371643,17209.0,17208.0,0.91005198]
[1673336566636,0.05371643,17209.0,17208.0,2.61352689]
[1673336566914,0.0056271,17209.0,17208.0,2.61352689]
[1673336567660,0.0056271,17209.0,17208.0,2.38652689]
[1673336569174,0.0056271,17209.0,17208.0,2.73507024]
[1673336569432,0.0056271,17209.0,17208.0,2.38652689]
[1673336571739,0.0056271,17209.0,17208.0,2.73507563]
[1673336572003,0.0056271,17209.0,17208.0,2.73507647]
[1673336572240,0.0056271,17209.0,17208.0,2.38652689]
[1673336576070,0.0056271,17209.0,17208.0,2.38645909]
[1673336576586,0.0056271,17209.0,17208.0,2.73499609]
[1673336577912,0.0056271,17209.0,17208.0,2.38645909]
[1673336578097,0.0056271,17209.0,17208.0,2.68645909]
[1673336578618,0.0056271,17209.0,17208.0,2.38645909]
[1673336579347,0.0056271,17209.0,17208.0,2.02508509]
[1673336579597,0.0056271,17209.0,17208.0,2.38688309]
[1673336579845,0.0056271,17209.0,17208.0,2.68688309]
[1673336580085,0.0056271,17209.0,17208.0,2.68690124]
[1673336580333,0.0056271,17209.0,17208.0,3.68690124]
[1673336580591,0.02172938,17209.0,17208.0,3.25125633]
[1673336584359,0.02172938,17209.0,17208.0,3.81913834]
[1673336585905,0.02172938,17209.0,17208.0,3.74613834]
[1673336586189,0.02172938,17209.0,17208.0,4.52860021]
[1673336586450,0.66402611,17210.0,17209.0,0.21358975]
[1673336586714,0.66402611,17210.0,17209.0,3.14590451]
[1673336587693,0.66402611,17210.0,17209.0,2.85054732]
[1673336587938,0.66402611,17210.0,17209.0,3.2859065]
[1673336588185,0.66402611,17210.0,17209.0,3.28592141]
[1673336589197,0.66402611,17210.0,17209.0,2.56843815]
[1673336589692,0.66402611,17210.0,17209.0,2.40033815]
[1673336589983,0.66402611,17210.0,17209.0,2.22621188]
[1673336591221,0.66402611,17210.0,17209.0,2.22621435]
[1673336591462,0.66402611,17210.0,17209.0,2.40033815]
[1673336591970,0.66402611,17210.0,17209.0,2.66158961]
[1673336592229,0.66402611,17210.0,17209.0,2.22621552]
[1673336593986,0.66402611,17210.0,17209.0,2.02621552]
[1673336602024,0.66402611,17210.0,17209.0,2.20033815]
[1673336602563,0.66402611,17210.0,17209.0,2.50033815]
[1673336602820,0.66402611,17210.0,17209.0,2.90434031]
[1673336603323,0.66402611,17210.0,17209.0,2.50033815]
[1673336603586,0.66402611,17210.0,17209.0,2.15202125]
[1673336605282,0.66402611,17210.0,17209.0,1.85202125]
[1673336605502,0.66402611,17210.0,17209.0,2.15202125]
[1673336605724,0.66402611,17210.0,17209.0,2.2003699]
[1673336606196,0.66402611,17210.0,17209.0,1.85202125]
[1673336606719,0.66402611,17210.0,17209.0,2.20036877]
[1673336608715,0.66396214,17210.0,17209.0,2.20036877]
[1673336611176,0.00580024,17210.0,17209.0,2.20036877]
[1673336621876,0.00580024,17210.0,17209.0,2.20052908]
[1673336622172,0.00580024,17210.0,17209.0,2.20052919]
[1673336622666,0.00580024,17210.0,17209.0,2.20053477]
[1673336624130,0.00580024,17210.0,17209.0,1.85202125]
[1673336625392,0.00580024,17210.0,17209.0,1.8384315]
[1673336625648,0.02098104,17210.0,17209.0,1.8384315]
[1673336626613,0.00580024,17210.0,17209.0,2.18699673]
[1673336629278,0.00580024,17210.0,17209.0,2.18677667]
[1673336629826,0.00580024,17210.0,17209.0,2.01285661]
[1673336630084,0.00580024,17210.0,17209.0,2.4482307]
[1673336630343,0.00580024,17210.0,17209.0,2.18677667]
[1673336630874,0.00580024,17210.0,17209.0,2.44821551]
[1673336631139,0.00580024,17210.0,17209.0,2.01284142]
[1673336632926,0.00580024,17210.0,17209.0,2.18677667]
[1673336633209,0.00580024,17210.0,17209.0,2.01282391]
[1673336634196,0.00580024,17210.0,17209.0,2.18709324]
[1673336634446,0.00580024,17210.0,17209.0,1.83852801]
[1673336634701,0.00580024,17210.0,17209.0,2.01282391]
[1673336638000,0.00580024,17210.0,17209.0,1.83851455]
[1673336639966,0.00580024,17210.0,17209.0,2.18677667]
[1673336640212,0.00580024,17210.0,17209.0,2.54857467]
[1673336640434,0.00580024,17210.0,17209.0,2.5483912]
[1673336641210,0.00580024,17210.0,17209.0,2.1865932]
[1673336641984,0.00580024,17210.0,17209.0,2.5483912]
[1673336642713,0.00580024,17210.0,17209.0,2.1865932]
[1673336643470,0.00664228,17210.0,17209.0,2.1865932]
[1673336643730,0.00580024,17210.0,17209.0,2.01252519]
[1673336644212,0.00580024,17210.0,17209.0,1.8383597]
[1673336644728,0.00580024,17210.0,17209.0,1.83763023]
[1673336644982,0.44149017,17210.0,17209.0,0.14]
[1673336645239,0.27079024,17210.0,17209.0,0.31421627]
[1673336645502,0.00664228,17210.0,17209.0,0.31421627]
[1673336645761,0.18087391,17210.0,17209.0,0.14]
[1673336646014,0.44586391,17210.0,17209.0,0.14]
[1673336646275,0.18087391,17210.0,17209.0,0.14]
[1673336646780,0.00580024,17210.0,17209.0,0.14]
[1673336649833,0.00664228,17210.0,17209.0,0.14]
[1673336650128,0.00580024,17210.0,17209.0,0.14]
[1673336653822,0.00664228,17210.0,17209.0,0.14]
[1673336654615,0.00580024,17210.0,17209.0,0.14]
[1673336658873,0.00664228,17210.0,17209.0,0.14]
[1673336659161,0.00580024,17210.0,17209.0,0.14]
[1673336663931,0.00580024,17210.0,17209.0,0.31421627]
[1673336664428,0.00580024,17210.0,17209.0,0.14]
[1673336665732,0.00580024,17210.0,17209.0,0.31421627]
[1673336674424,0.00580024,17210.0,17209.0,0.57552235]
[1673336675785,0.00580024,17210.0,17209.0,1.17955387]
[1673336677485,0.00580024,17210.0,17209.0,1.6896435]
[1673336677740,0.00568859,17210.0,17209.0,1.86380899]
[1673336678745,0.00568859,17210.0,17209.0,2.03801498]
[1673336679473,0.00568859,17210.0,17209.0,1.68963322]
[1673336682801,0.00568859,17210.0,17209.0,1.86380899]
[1673336684838,0.00568859,17210.0,17209.0,1.68963462]
[1673336685341,0.00568859,17210.0,17209.0,2.03801504]
[1673336685590,0.00568859,17210.0,17209.0,1.86380899]
[1673336693082,0.00568859,17210.0,17209.0,2.0380274]
[1673336693336,0.00568859,17210.0,17209.0,1.68964564]
[1673336693584,0.00568859,17210.0,17209.0,2.0380274]
[1673336694586,0.00568859,17210.0,17209.0,1.86380899]
[1673336695575,0.00568859,17210.0,17209.0,2.03803265]
[1673336695826,0.00568859,17210.0,17209.0,1.68965089]
[1673336696324,0.00568859,17210.0,17209.0,2.03803265]
[1673336696583,0.00568859,17210.0,17209.0,1.68965089]
[1673336698329,0.00568859,17210.0,17209.0,2.03803265]
[1673336698583,0.00568859,17210.0,17209.0,1.51542723]
[1673336698829,0.00568859,17210.0,17209.0,1.86380899]
[1673336700326,0.00568859,17210.0,17209.0,1.68968128]
[1673336700574,0.00568859,17210.0,17209.0,2.03806304]
[1673336700822,0.00568859,17210.0,17209.0,1.86380899]
[1673336701077,0.00568859,17210.0,17209.0,1.68969173]
[1673336701818,0.00262959,17210.0,17209.0,1.68969173]
[1673336702833,0.00262959,17210.0,17209.0,1.86380899]
[1673336705561,0.00262959,17210.0,17209.0,2.037877]
[1673336708360,0.00262959,17210.0,17209.0,2.29926476]
[1673336708608,0.00262959,17210.0,17209.0,2.037877]
[1673336708859,0.00262959,17210.0,17209.0,1.86390894]
[1673336714099,0.00262959,17210.0,17209.0,2.037877]
[1673336721323,0.00262959,17210.0,17209.0,2.29930574]
[1673336721587,0.00262959,17210.0,17209.0,2.037877]
[1673336722375,0.00262959,17210.0,17209.0,1.86392873]
[1673336722633,0.00262959,17210.0,17209.0,2.037877]
[1673336723389,0.00262959,17210.0,17209.0,2.29930294]
[1673336723684,0.00262959,17210.0,17209.0,1.86392885]
[1673336724415,0.00262959,17210.0,17209.0,2.037877]
[1673336724636,0.00262959,17210.0,17209.0,2.29930376]
[1673336724916,0.00262959,17210.0,17209.0,2.037877]
[1673336725164,0.00262959,17210.0,17209.0,2.29930288]
[1673336725415,0.00262959,17210.0,17209.0,2.037877]
[1673336725669,0.00262959,17210.0,17209.0,2.29930321]
[1673336725916,0.00262959,17210.0,17209.0,2.037877]
[1673336726168,0.00262959,17210.0,17209.0,2.29930367]
[1673336726937,0.00262959,17210.0,17209.0,2.037877]
[1673336727694,0.00347163,17210.0,17209.0,1.86392554]
[1673336727945,0.00262959,17210.0,17209.0,1.68984367]
[1673336730397,0.00262959,17210.0,17209.0,1.86392554]
[1673336733650,0.01928845,17210.0,17209.0,2.29929963]
[1673336733866,0.01928845,17210.0,17209.0,2.037877]
[1673336739668,0.02013049,17210.0,17209.0,1.86391233]
[1673336739912,0.01928845,17210.0,17209.0,2.03819657]
[1673336740186,0.01928845,17210.0,17209.0,1.86391233]
[1673336742006,0.01928845,17210.0,17209.0,2.03819951]
[1673336742258,0.01928845,17210.0,17209.0,1.86391233]
[1673336749491,0.01928845,17210.0,17209.0,2.29928642]
[1673336750207,0.01928845,17210.0,17209.0,2.399675]
[1673336751247,0.01928845,17210.0,17209.0,2.037877]
[1673336752053,0.01928845,17210.0,17209.0,2.699675]
[1673336752273,0.01928845,17210.0,17209.0,2.35129324]
[1673336752538,0.01919445,17210.0,17209.0,2.35129324]
[1673336752793,0.01919445,17210.0,17209.0,2.7552954]
[1673336753046,0.01919445,17210.0,17209.0,2.7785404]
[1673336753323,0.01919445,17210.0,17209.0,2.07453824]